Workbook

Sheet INPUT
A1: Input (Transaktionsjournal): | D1: =COLUMN() -> 4 | E1: =COLUMN() -> 5 | F1: =COLUMN() -> 6 | G1: =COLUMN() -> 7 | H1: =COLUMN() -> 8 | I1: =COLUMN() -> 9 | J1: =COLUMN() -> 10 | K1: =COLUMN() -> 11 | L1: =COLUMN() -> 12 | M1: =COLUMN() -> 13 | N1: =COLUMN() -> 14 | O1: =COLUMN() -> 15
A2: Date | B2: Account | C2: Currency | D2: ISIN | E2: Text | F2: Instrument type | G2: Transaction Type | H2: Quantity | I2: Price per Unit | J2: Purchase/Sale Price | K2: Fees | L2: Amount cred./deb. | M2: FX | N2: Amount cred./deb. FX | O2: Bestand Werpapier
A3: 2020-06-30 | B3: Sparplan | C3: EUR | D3: ARERO Nachhaltig | E3: Kauf | F3: Indexfonds | G3: Kauf | H3: =ROUND(J3/I3,4) -> 100 | I3: 100 | J3: 10000 | K3: 0 | L3: =-J3-K3 -> -10000 | M3: 1 | N3: =J3*M3 -> 10000 | O3: =IF(D3<>"",SUMIF($D$3:D3,D3,$H$3:H3),"") -> 100
A4: 2020-07-05 | B4: Sparplan | C4: EUR | D4: ARERO Nachhaltig | E4: Kauf | F4: Indexfonds | G4: Kauf | H4: =ROUND(J4/I4,4) -> 4.9121 | I4: 101.79 | J4: 500 | K4: 0 | L4: =-J4-K4 -> -500 | M4: 1 | N4: 500 | O4: =IF(D4<>"",SUMIF($D$3:D4,D4,$H$3:H4),"") -> 104.9121
A5: 2020-07-20 | B5: Sparplan | C5: EUR | D5: ARERO Nachhaltig | E5: Verkauf | F5: Indexfonds | G5: Verkauf | H5: =ROUND(J5/I5,4) -> -1.9545 | I5: 102.33 | J5: -200 | K5: 0 | L5: =-J5-K5 -> 200 | M5: 1 | N5: -200 | O5: =IF(D5<>"",SUMIF($D$3:D5,D5,$H$3:H5),"") -> 102.9576
A6: 2020-08-05 | B6: Sparplan | C6: EUR | D6: ARERO Nachhaltig | E6: Kauf | F6: Indexfonds | G6: Kauf | H6: =ROUND(J6/I6,4) -> 4.86 | I6: 102.88 | J6: 500 | K6: 0 | L6: =-J6-K6 -> -500 | M6: 1 | N6: 500 | O6: =IF(D6<>"",SUMIF($D$3:D6,D6,$H$3:H6),"") -> 107.8176
A7: 2020-08-20 | B7: Sparplan | C7: EUR | D7: ARERO Nachhaltig | E7: Verkauf | F7: Indexfonds | G7: Verkauf | H7: =ROUND(J7/I7,4) -> -1.9391 | I7: 103.14 | J7: -200 | K7: 0 | L7: =-J7-K7 -> 200 | M7: 1 | N7: -200 | O7: =IF(D7<>"",SUMIF($D$3:D7,D7,$H$3:H7),"") -> 105.8785
A8: 2020-09-05 | B8: Sparplan | C8: EUR | D8: ARERO Nachhaltig | E8: Kauf | F8: Indexfonds | G8: Kauf | H8: =ROUND(J8/I8,4) -> 4.8511 | I8: 103.07 | J8: 500 | K8: 0 | L8: =-J8-K8 -> -500 | M8: 1 | N8: 500 | O8: =IF(D8<>"",SUMIF($D$3:D8,D8,$H$3:H8),"") -> 110.7296
A9: 2020-09-20 | B9: Sparplan | C9: EUR | D9: ARERO Nachhaltig | E9: Verkauf | F9: Indexfonds | G9: Verkauf | H9: =ROUND(J9/I9,4) -> -1.9417 | I9: 103 | J9: -200 | K9: 0 | L9: =-J9-K9 -> 200 | M9: 1 | N9: -200 | O9: =IF(D9<>"",SUMIF($D$3:D9,D9,$H$3:H9),"") -> 108.7879
A10: 2020-10-05 | B10: Sparplan | C10: EUR | D10: ARERO Nachhaltig | E10: Kauf | F10: Indexfonds | G10: Kauf | H10: =ROUND(J10/I10,4) -> 4.8515 | I10: 103.06 | J10: 500 | K10: 0 | L10: =-J10-K10 -> -500 | M10: 1 | N10: =J10*M10 -> 500 | O10: =IF(D10<>"",SUMIF($D$3:D10,D10,$H$3:H10),"") -> 113.6394
A11: 2020-10-20 | B11: Sparplan | C11: EUR | D11: ARERO Nachhaltig | E11: Verkauf | F11: Indexfonds | G11: Verkauf | H11: =ROUND(J11/I11,4) -> -1.8972 | I11: 105.42 | J11: -200 | K11: 0 | L11: =-J11-K11 -> 200 | M11: 1 | N11: -200 | O11: =IF(D11<>"",SUMIF($D$3:D11,D11,$H$3:H11),"") -> 111.7422
A12: 2020-11-05 | B12: Sparplan | C12: EUR | D12: ARERO Nachhaltig | E12: Kauf | F12: Indexfonds | G12: Kauf | H12: =ROUND(J12/I12,4) -> 4.7028 | I12: 106.32 | J12: 500 | K12: 0 | L12: =-J12-K12 -> -500 | M12: 1 | N12: 500 | O12: =IF(D12<>"",SUMIF($D$3:D12,D12,$H$3:H12),"") -> 116.445
A13: 2020-11-20 | B13: Sparplan | C13: EUR | D13: ARERO Nachhaltig | E13: Verkauf | F13: Indexfonds | G13: Verkauf | H13: =ROUND(J13/I13,4) -> -1.8431 | I13: 108.51 | J13: -200 | K13: 0 | L13: =-J13-K13 -> 200 | M13: 1 | N13: -200 | O13: =IF(D13<>"",SUMIF($D$3:D13,D13,$H$3:H13),"") -> 114.6019
A14: 2020-12-05 | B14: Sparplan | C14: EUR | D14: ARERO Nachhaltig | E14: Kauf | F14: Indexfonds | G14: Kauf | H14: =ROUND(J14/I14,4) -> 4.5708 | I14: 109.39 | J14: 500 | K14: 0 | L14: =-J14-K14 -> -500 | M14: 1 | N14: 500 | O14: =IF(D14<>"",SUMIF($D$3:D14,D14,$H$3:H14),"") -> 119.1727
A15: 2020-12-20 | B15: Sparplan | C15: EUR | D15: ARERO Nachhaltig | E15: Verkauf | F15: Indexfonds | G15: Verkauf | H15: =ROUND(J15/I15,4) -> -1.8197 | I15: 109.91 | J15: -200 | K15: 0 | L15: =-J15-K15 -> 200 | M15: 1 | N15: -200 | O15: =IF(D15<>"",SUMIF($D$3:D15,D15,$H$3:H15),"") -> 117.353
A16: 2021-01-05 | B16: Sparplan | C16: EUR | D16: ARERO Nachhaltig | E16: Kauf | F16: Indexfonds | G16: Kauf | H16: =ROUND(J16/I16,4) -> 4.5061 | I16: 110.96 | J16: 500 | K16: 0 | L16: =-J16-K16 -> -500 | M16: 1 | N16: 500 | O16: =IF(D16<>"",SUMIF($D$3:D16,D16,$H$3:H16),"") -> 121.8591
A17: 2021-01-20 | B17: Sparplan | C17: EUR | D17: ARERO Nachhaltig | E17: Verkauf | F17: Indexfonds | G17: Verkauf | H17: =ROUND(J17/I17,4) -> -1.7388 | I17: 115.02 | J17: -200 | K17: 0 | L17: =-J17-K17 -> 200 | M17: 1 | N17: -200 | O17: =IF(D17<>"",SUMIF($D$3:D17,D17,$H$3:H17),"") -> 120.1203
A18: 2021-02-05 | B18: Sparplan | C18: EUR | D18: ARERO Nachhaltig | E18: Kauf | F18: Indexfonds | G18: Kauf | H18: =ROUND(J18/I18,4) -> 4.3077 | I18: 116.07 | J18: 500 | K18: 0 | L18: =-J18-K18 -> -500 | M18: 1 | N18: =J18*M18 -> 500 | O18: =IF(D18<>"",SUMIF($D$3:D18,D18,$H$3:H18),"") -> 124.428
A19: 2021-02-20 | B19: Sparplan | C19: EUR | D19: ARERO Nachhaltig | E19: Verkauf | F19: Indexfonds | G19: Verkauf | H19: =ROUND(J19/I19,4) -> -1.7122 | I19: 116.81 | J19: -200 | K19: 0 | L19: =-J19-K19 -> 200 | M19: 1 | N19: -200 | O19: =IF(D19<>"",SUMIF($D$3:D19,D19,$H$3:H19),"") -> 122.7158
A20: 2021-03-05 | B20: Sparplan | C20: EUR | D20: ARERO Nachhaltig | E20: Kauf | F20: Indexfonds | G20: Kauf | H20: =ROUND(J20/I20,4) -> 4.3706 | I20: 114.4 | J20: 500 | K20: 0 | L20: =-J20-K20 -> -500 | M20: 1 | N20: 500 | O20: =IF(D20<>"",SUMIF($D$3:D20,D20,$H$3:H20),"") -> 127.0864
A21: 2021-03-20 | B21: Sparplan | C21: EUR | D21: ARERO Nachhaltig | E21: Verkauf | F21: Indexfonds | G21: Verkauf | H21: =ROUND(J21/I21,4) -> -1.72 | I21: 116.28 | J21: -200 | K21: 0 | L21: =-J21-K21 -> 200 | M21: 1 | N21: -200 | O21: =IF(D21<>"",SUMIF($D$3:D21,D21,$H$3:H21),"") -> 125.3664
A22: 2021-04-05 | B22: Sparplan | C22: EUR | D22: ARERO Nachhaltig | E22: Kauf | F22: Indexfonds | G22: Kauf | H22: =ROUND(J22/I22,4) -> 4.243 | I22: 117.84 | J22: 500 | K22: 0 | L22: =-J22-K22 -> -500 | M22: 1 | N22: 500 | O22: =IF(D22<>"",SUMIF($D$3:D22,D22,$H$3:H22),"") -> 129.6094
A23: 2021-04-20 | B23: Sparplan | C23: EUR | D23: ARERO Nachhaltig | E23: Verkauf | F23: Indexfonds | G23: Verkauf | H23: =ROUND(J23/I23,4) -> -1.7034 | I23: 117.41 | J23: -200 | K23: 0 | L23: =-J23-K23 -> 200 | M23: 1 | N23: -200 | O23: =IF(D23<>"",SUMIF($D$3:D23,D23,$H$3:H23),"") -> 127.906
A24: 2021-05-05 | B24: Sparplan | C24: EUR | D24: ARERO Nachhaltig | E24: Kauf | F24: Indexfonds | G24: Kauf | H24: =ROUND(J24/I24,4) -> 4.2359 | I24: 118.04 | J24: 500 | K24: 0 | L24: =-J24-K24 -> -500 | M24: 1 | N24: 500 | O24: =IF(D24<>"",SUMIF($D$3:D24,D24,$H$3:H24),"") -> 132.1419
A25: 2021-05-20 | B25: Sparplan | C25: EUR | D25: ARERO Nachhaltig | E25: Verkauf | F25: Indexfonds | G25: Verkauf | H25: =ROUND(J25/I25,4) -> -1.7142 | I25: 116.67 | J25: -200 | K25: 0 | L25: =-J25-K25 -> 200 | M25: 1 | N25: -200 | O25: =IF(D25<>"",SUMIF($D$3:D25,D25,$H$3:H25),"") -> 130.4277
A26: 2021-06-05 | B26: Sparplan | C26: EUR | D26: ARERO Nachhaltig | E26: Kauf | F26: Indexfonds | G26: Kauf | H26: =ROUND(J26/I26,4) -> 4.159 | I26: 120.22 | J26: 500 | K26: 0 | L26: =-J26-K26 -> -500 | M26: 1 | N26: 500 | O26: =IF(D26<>"",SUMIF($D$3:D26,D26,$H$3:H26),"") -> 134.5867
A27: 2021-06-20 | B27: Sparplan | C27: EUR | D27: ARERO Nachhaltig | E27: Verkauf | F27: Indexfonds | G27: Verkauf | H27: =ROUND(J27/I27,4) -> -1.6636 | I27: 120.22 | J27: -200 | K27: 0 | L27: =-J27-K27 -> 200 | M27: 1 | N27: -200 | O27: =IF(D27<>"",SUMIF($D$3:D27,D27,$H$3:H27),"") -> 132.9231
A28: 2021-07-05 | B28: Sparplan | C28: EUR | D28: ARERO Nachhaltig | E28: Kauf | F28: Indexfonds | G28: Kauf | H28: =ROUND(J28/I28,4) -> 4.079 | I28: 122.58 | J28: 500 | K28: 0 | L28: =-J28-K28 -> -500 | M28: 1 | N28: 500 | O28: =IF(D28<>"",SUMIF($D$3:D28,D28,$H$3:H28),"") -> 137.0021
A29: 2021-07-20 | B29: Sparplan | C29: EUR | D29: ARERO Nachhaltig | E29: Verkauf | F29: Indexfonds | G29: Verkauf | H29: =ROUND(J29/I29,4) -> -1.6547 | I29: 120.87 | J29: -200 | K29: 0 | L29: =-J29-K29 -> 200 | M29: 1 | N29: -200 | O29: =IF(D29<>"",SUMIF($D$3:D29,D29,$H$3:H29),"") -> 135.3474
A30: 2021-08-05 | B30: Sparplan | C30: EUR | D30: ARERO Nachhaltig | E30: Kauf | F30: Indexfonds | G30: Kauf | H30: =ROUND(J30/I30,4) -> 4.0548 | I30: 123.31 | J30: 500 | K30: 0 | L30: =-J30-K30 -> -500 | M30: 1 | N30: 500 | O30: =IF(D30<>"",SUMIF($D$3:D30,D30,$H$3:H30),"") -> 139.4022
A31: 2021-08-20 | B31: Sparplan | C31: EUR | D31: ARERO Nachhaltig | E31: Verkauf | F31: Indexfonds | G31: Verkauf | H31: =ROUND(J31/I31,4) -> -1.6481 | I31: 121.35 | J31: -200 | K31: 0 | L31: =-J31-K31 -> 200 | M31: 1 | N31: -200 | O31: =IF(D31<>"",SUMIF($D$3:D31,D31,$H$3:H31),"") -> 137.7541
A32: 2021-09-05 | B32: Sparplan | C32: EUR | D32: ARERO Nachhaltig | E32: Kauf | F32: Indexfonds | G32: Kauf | H32: =ROUND(J32/I32,4) -> 3.9927 | I32: 125.23 | J32: 500 | K32: 0 | L32: =-J32-K32 -> -500 | M32: 1 | N32: =J32*M32 -> 500 | O32: =IF(D32<>"",SUMIF($D$3:D32,D32,$H$3:H32),"") -> 141.7468
A33: 2021-09-20 | B33: Sparplan | C33: EUR | D33: ARERO Nachhaltig | E33: Verkauf | F33: Indexfonds | G33: Verkauf | H33: =ROUND(J33/I33,4) -> -1.6156 | I33: 123.79 | J33: -200 | K33: 0 | L33: =-J33-K33 -> 200 | M33: 1 | N33: -200 | O33: =IF(D33<>"",SUMIF($D$3:D33,D33,$H$3:H33),"") -> 140.1312
A34: 2021-10-05 | B34: Sparplan | C34: EUR | D34: ARERO Nachhaltig | E34: Kauf | F34: Indexfonds | G34: Kauf | H34: =ROUND(J34/I34,4) -> 4.0407 | I34: 123.74 | J34: 500 | K34: 0 | L34: =-J34-K34 -> -500 | M34: 1 | N34: 500 | O34: =IF(D34<>"",SUMIF($D$3:D34,D34,$H$3:H34),"") -> 144.1719
A35: 2021-10-20 | B35: Sparplan | C35: EUR | D35: ARERO Nachhaltig | E35: Verkauf | F35: Indexfonds | G35: Verkauf | H35: =ROUND(J35/I35,4) -> -1.5711 | I35: 127.3 | J35: -200 | K35: 0 | L35: =-J35-K35 -> 200 | M35: 1 | N35: -200 | O35: =IF(D35<>"",SUMIF($D$3:D35,D35,$H$3:H35),"") -> 142.6008
A36: 2021-11-05 | B36: Sparplan | C36: EUR | D36: ARERO Nachhaltig | E36: Kauf | F36: Indexfonds | G36: Kauf | H36: =ROUND(J36/I36,4) -> 3.9136 | I36: 127.76 | J36: 500 | K36: 0 | L36: =-J36-K36 -> -500 | M36: 1 | N36: 500 | O36: =IF(D36<>"",SUMIF($D$3:D36,D36,$H$3:H36),"") -> 146.5144
A37: 2021-11-20 | B37: Sparplan | C37: EUR | D37: ARERO Nachhaltig | E37: Verkauf | F37: Indexfonds | G37: Verkauf | H37: =ROUND(J37/I37,4) -> -1.5408 | I37: 129.8 | J37: -200 | K37: 0 | L37: =-J37-K37 -> 200 | M37: 1 | N37: -200 | O37: =IF(D37<>"",SUMIF($D$3:D37,D37,$H$3:H37),"") -> 144.9736
A38: 2021-12-05 | B38: Sparplan | C38: EUR | D38: ARERO Nachhaltig | E38: Kauf | F38: Indexfonds | G38: Kauf | H38: =ROUND(J38/I38,4) -> 3.9834 | I38: 125.52 | J38: 500 | K38: 0 | L38: =-J38-K38 -> -500 | M38: 1 | N38: 500 | O38: =IF(D38<>"",SUMIF($D$3:D38,D38,$H$3:H38),"") -> 148.957
A39: 2021-12-20 | B39: Sparplan | C39: EUR | D39: ARERO Nachhaltig | E39: Verkauf | F39: Indexfonds | G39: Verkauf | H39: =ROUND(J39/I39,4) -> -1.5873 | I39: 126 | J39: -200 | K39: 0 | L39: =-J39-K39 -> 200 | M39: 1 | N39: -200 | O39: =IF(D39<>"",SUMIF($D$3:D39,D39,$H$3:H39),"") -> 147.3697
A40: 2022-01-05 | B40: Sparplan | C40: EUR | D40: ARERO Nachhaltig | E40: Kauf | F40: Indexfonds | G40: Kauf | H40: =ROUND(J40/I40,4) -> 3.8853 | I40: 128.69 | J40: 500 | K40: 0 | L40: =-J40-K40 -> -500 | M40: 1 | N40: =J40*M40 -> 500 | O40: =IF(D40<>"",SUMIF($D$3:D40,D40,$H$3:H40),"") -> 151.255

Sheet FIFO
A1: Output (Auswertungsübersicht, nach First-in-First-Out-Methode* (= FIFO)) | G1: =COLUMN() -> 7 | H1: =COLUMN() -> 8 | I1: =COLUMN() -> 9 | J1: =COLUMN() -> 10 | K1: =COLUMN() -> 11 | L1: =COLUMN() -> 12 | M1: =COLUMN() -> 13 | N1: =COLUMN() -> 14 | O1: =COLUMN() -> 15 | P1: =COLUMN() -> 16 | Q1: =COLUMN() -> 17 | R1: =COLUMN() -> 18 | S1: =COLUMN() -> 19 | T1: =COLUMN() -> 20 | U1: =COLUMN() -> 21
A2: Datum | B2: Konto | C2: Währung | D2: ISIN | E2: Bemerkung | F2: WP-Art | G2: Transaktion Kauf/Verkauf | H2: Menge | I2: Preis | J2: Menge x Preis | K2: Kosten | L2: Zu- Abgang | M2: Kurs | N2: Depot Zu- Abgang | O2: WP Bestand | P2: Kaufdatum | Q2: Menge | R2: Einstandspreis | S2: Kaufkurs | T2: Kosten | U2: realisierter Gewinn/Verlust
A3: 2020-06-30 | B3: Sparplan | C3: EUR | D3: ARERO Nachhaltig | E3: Kauf | F3: Indexfonds | G3: Kauf | H3: 100 | I3: 100 | J3: 10000 | K3: 0 | L3: -10000 | M3: 1 | N3: 10000 | O3: 100
A4: 2020-07-05 | B4: Sparplan | C4: EUR | D4: ARERO Nachhaltig | E4: Kauf | F4: Indexfonds | G4: Kauf | H4: 4.9121 | I4: 101.79 | J4: 500 | K4: 0 | L4: -500 | M4: 1 | N4: 500 | O4: 104.9121
A5: 2020-07-20 | B5: Sparplan | C5: EUR | D5: ARERO Nachhaltig | E5: Verkauf | F5: Indexfonds | G5: Verkauf | H5: -1.9545 | I5: 102.33 | J5: -200.003985 | K5: 0 | L5: -200 | M5: 1 | N5: -200 | O5: 102.9576 | P5: 2020-06-30 | Q5: 1.9545 | R5: 195.45 | S5: 100 | T5: 0 | U5: 4.553985
A6: 2020-08-05 | B6: Sparplan | C6: EUR | D6: ARERO Nachhaltig | E6: Kauf | F6: Indexfonds | G6: Kauf | H6: 4.86 | I6: 102.88 | J6: 500 | K6: 0 | L6: -500 | M6: 1 | N6: 500 | O6: 107.8176
A7: 2020-08-20 | B7: Sparplan | C7: EUR | D7: ARERO Nachhaltig | E7: Verkauf | F7: Indexfonds | G7: Verkauf | H7: -1.9391 | I7: 103.14 | J7: -199.998774 | K7: 0 | L7: -200 | M7: 1 | N7: -200 | O7: 105.8785 | P7: 2020-06-30 | Q7: 1.9391 | R7: 193.91 | S7: 100 | T7: 0 | U7: 6.088774
A8: 2020-09-05 | B8: Sparplan | C8: EUR | D8: ARERO Nachhaltig | E8: Kauf | F8: Indexfonds | G8: Kauf | H8: 4.8511 | I8: 103.07 | J8: 500 | K8: 0 | L8: -500 | M8: 1 | N8: 500 | O8: 110.7296
A9: 2020-09-20 | B9: Sparplan | C9: EUR | D9: ARERO Nachhaltig | E9: Verkauf | F9: Indexfonds | G9: Verkauf | H9: -1.9417 | I9: 103 | J9: -199.9951 | K9: 0 | L9: -200 | M9: 1 | N9: -200 | O9: 108.7879 | P9: 2020-06-30 | Q9: 1.9417 | R9: 194.17 | S9: 100 | T9: 0 | U9: 5.8251
A10: 2020-10-05 | B10: Sparplan | C10: EUR | D10: ARERO Nachhaltig | E10: Kauf | F10: Indexfonds | G10: Kauf | H10: 4.8515 | I10: 103.06 | J10: 500 | K10: 0 | L10: -500 | M10: 1 | N10: 500 | O10: 113.6394
A11: 2020-10-20 | B11: Sparplan | C11: EUR | D11: ARERO Nachhaltig | E11: Verkauf | F11: Indexfonds | G11: Verkauf | H11: -1.8972 | I11: 105.42 | J11: -200.002824 | K11: 0 | L11: -200 | M11: 1 | N11: -200 | O11: 111.7422 | P11: 2020-06-30 | Q11: 1.8972 | R11: 189.72 | S11: 100 | T11: 0 | U11: 10.282824
A12: 2020-11-05 | B12: Sparplan | C12: EUR | D12: ARERO Nachhaltig | E12: Kauf | F12: Indexfonds | G12: Kauf | H12: 4.7028 | I12: 106.32 | J12: 500 | K12: 0 | L12: -500 | M12: 1 | N12: 500 | O12: 116.445
A13: 2020-11-20 | B13: Sparplan | C13: EUR | D13: ARERO Nachhaltig | E13: Verkauf | F13: Indexfonds | G13: Verkauf | H13: -1.8431 | I13: 108.51 | J13: -199.994781 | K13: 0 | L13: -200 | M13: 1 | N13: -200 | O13: 114.6019 | P13: 2020-06-30 | Q13: 1.8431 | R13: 184.31 | S13: 100 | T13: 0 | U13: 15.684781
A14: 2020-12-05 | B14: Sparplan | C14: EUR | D14: ARERO Nachhaltig | E14: Kauf | F14: Indexfonds | G14: Kauf | H14: 4.5708 | I14: 109.39 | J14: 500 | K14: 0 | L14: -500 | M14: 1 | N14: 500 | O14: 119.1727
A15: 2020-12-20 | B15: Sparplan | C15: EUR | D15: ARERO Nachhaltig | E15: Verkauf | F15: Indexfonds | G15: Verkauf | H15: -1.8197 | I15: 109.91 | J15: -200.003227 | K15: 0 | L15: -200 | M15: 1 | N15: -200 | O15: 117.353 | P15: 2020-06-30 | Q15: 1.8197 | R15: 181.97 | S15: 100 | T15: 0 | U15: 18.033227
A16: 2021-01-01 | B16: Sparplan | C16: EUR | D16: ARERO Nachhaltig | E16: Kauf | F16: Indexfonds | G16: Bestand | H16: 88.6047 | I16: 100 | J16: 8860.47 | K16: 0 | L16: -8860.47 | M16: 1
A17: 2021-01-01 | B17: Sparplan | C17: EUR | D17: ARERO Nachhaltig | E17: Kauf | F17: Indexfonds | G17: Bestand | H17: 4.9121 | I17: 101.79 | J17: 500.002659 | K17: 0 | L17: -500.002659 | M17: 1
A18: 2021-01-01 | B18: Sparplan | C18: EUR | D18: ARERO Nachhaltig | E18: Kauf | F18: Indexfonds | G18: Bestand | H18: 4.86 | I18: 102.88 | J18: 499.9968 | K18: 0 | L18: -499.9968 | M18: 1
A19: 2021-01-01 | B19: Sparplan | C19: EUR | D19: ARERO Nachhaltig | E19: Kauf | F19: Indexfonds | G19: Bestand | H19: 4.8511 | I19: 103.07 | J19: 500.002877 | K19: 0 | L19: -500.002877 | M19: 1
A20: 2021-01-01 | B20: Sparplan | C20: EUR | D20: ARERO Nachhaltig | E20: Kauf | F20: Indexfonds | G20: Bestand | H20: 4.8515 | I20: 103.06 | J20: 499.99559 | K20: 0 | L20: -499.99559 | M20: 1
A21: 2021-01-01 | B21: Sparplan | C21: EUR | D21: ARERO Nachhaltig | E21: Kauf | F21: Indexfonds | G21: Bestand | H21: 4.7028 | I21: 106.32 | J21: 500.001696 | K21: 0 | L21: -500.001696 | M21: 1
A22: 2021-01-01 | B22: Sparplan | C22: EUR | D22: ARERO Nachhaltig | E22: Kauf | F22: Indexfonds | G22: Bestand | H22: 4.5708 | I22: 109.39 | J22: 499.999812 | K22: 0 | L22: -499.999812 | M22: 1
A23: 2021-01-05 | B23: Sparplan | C23: EUR | D23: ARERO Nachhaltig | E23: Kauf | F23: Indexfonds | G23: Kauf | H23: 4.5061 | I23: 110.96 | J23: 500 | K23: 0 | L23: -500 | M23: 1 | N23: 500 | O23: 121.8591
A24: 2021-01-20 | B24: Sparplan | C24: EUR | D24: ARERO Nachhaltig | E24: Verkauf | F24: Indexfonds | G24: Verkauf | H24: -1.7388 | I24: 115.02 | J24: -199.996776 | K24: 0 | L24: -200 | M24: 1 | N24: -200 | O24: 120.1203 | P24: 2020-06-30 | Q24: 1.7388 | R24: 173.88 | S24: 100 | T24: 0 | U24: 26.116776
A25: 2021-02-05 | B25: Sparplan | C25: EUR | D25: ARERO Nachhaltig | E25: Kauf | F25: Indexfonds | G25: Kauf | H25: 4.3077 | I25: 116.07 | J25: 500 | K25: 0 | L25: -500 | M25: 1 | N25: 500 | O25: 124.428
A26: 2021-02-20 | B26: Sparplan | C26: EUR | D26: ARERO Nachhaltig | E26: Verkauf | F26: Indexfonds | G26: Verkauf | H26: -1.7122 | I26: 116.81 | J26: -200.002082 | K26: 0 | L26: -200 | M26: 1 | N26: -200 | O26: 122.7158 | P26: 2020-06-30 | Q26: 1.7122 | R26: 171.22 | S26: 100 | T26: 0 | U26: 28.782082
A27: 2021-03-05 | B27: Sparplan | C27: EUR | D27: ARERO Nachhaltig | E27: Kauf | F27: Indexfonds | G27: Kauf | H27: 4.3706 | I27: 114.4 | J27: 500 | K27: 0 | L27: -500 | M27: 1 | N27: 500 | O27: 127.0864
A28: 2021-03-20 | B28: Sparplan | C28: EUR | D28: ARERO Nachhaltig | E28: Verkauf | F28: Indexfonds | G28: Verkauf | H28: -1.72 | I28: 116.28 | J28: -200.0016 | K28: 0 | L28: -200 | M28: 1 | N28: -200 | O28: 125.3664 | P28: 2020-06-30 | Q28: 1.72 | R28: 172 | S28: 100 | T28: 0 | U28: 28.0016
A29: 2021-04-05 | B29: Sparplan | C29: EUR | D29: ARERO Nachhaltig | E29: Kauf | F29: Indexfonds | G29: Kauf | H29: 4.243 | I29: 117.84 | J29: 500 | K29: 0 | L29: -500 | M29: 1 | N29: 500 | O29: 129.6094
A30: 2021-04-20 | B30: Sparplan | C30: EUR | D30: ARERO Nachhaltig | E30: Verkauf | F30: Indexfonds | G30: Verkauf | H30: -1.7034 | I30: 117.41 | J30: -199.996194 | K30: 0 | L30: -200 | M30: 1 | N30: -200 | O30: 127.906 | P30: 2020-06-30 | Q30: 1.7034 | R30: 170.34 | S30: 100 | T30: 0 | U30: 29.656194
A31: 2021-05-05 | B31: Sparplan | C31: EUR | D31: ARERO Nachhaltig | E31: Kauf | F31: Indexfonds | G31: Kauf | H31: 4.2359 | I31: 118.04 | J31: 500 | K31: 0 | L31: -500 | M31: 1 | N31: 500 | O31: 132.1419
A32: 2021-05-20 | B32: Sparplan | C32: EUR | D32: ARERO Nachhaltig | E32: Verkauf | F32: Indexfonds | G32: Verkauf | H32: -1.7142 | I32: 116.67 | J32: -199.995714 | K32: 0 | L32: -200 | M32: 1 | N32: -200 | O32: 130.4277 | P32: 2020-06-30 | Q32: 1.7142 | R32: 171.42 | S32: 100 | T32: 0 | U32: 28.575714
A33: 2021-06-05 | B33: Sparplan | C33: EUR | D33: ARERO Nachhaltig | E33: Kauf | F33: Indexfonds | G33: Kauf | H33: 4.159 | I33: 120.22 | J33: 500 | K33: 0 | L33: -500 | M33: 1 | N33: 500 | O33: 134.5867
A34: 2021-06-20 | B34: Sparplan | C34: EUR | D34: ARERO Nachhaltig | E34: Verkauf | F34: Indexfonds | G34: Verkauf | H34: -1.6636 | I34: 120.22 | J34: -199.997992 | K34: 0 | L34: -200 | M34: 1 | N34: -200 | O34: 132.9231 | P34: 2020-06-30 | Q34: 1.6636 | R34: 166.36 | S34: 100 | T34: 0 | U34: 33.637992
A35: 2021-07-05 | B35: Sparplan | C35: EUR | D35: ARERO Nachhaltig | E35: Kauf | F35: Indexfonds | G35: Kauf | H35: 4.079 | I35: 122.58 | J35: 500 | K35: 0 | L35: -500 | M35: 1 | N35: 500 | O35: 137.0021
A36: 2021-07-20 | B36: Sparplan | C36: EUR | D36: ARERO Nachhaltig | E36: Verkauf | F36: Indexfonds | G36: Verkauf | H36: -1.6547 | I36: 120.87 | J36: -200.003589 | K36: 0 | L36: -200 | M36: 1 | N36: -200 | O36: 135.3474 | P36: 2020-06-30 | Q36: 1.6547 | R36: 165.47 | S36: 100 | T36: 0 | U36: 34.533589
A37: 2021-08-05 | B37: Sparplan | C37: EUR | D37: ARERO Nachhaltig | E37: Kauf | F37: Indexfonds | G37: Kauf | H37: 4.0548 | I37: 123.31 | J37: 500 | K37: 0 | L37: -500 | M37: 1 | N37: 500 | O37: 139.4022
A38: 2021-08-20 | B38: Sparplan | C38: EUR | D38: ARERO Nachhaltig | E38: Verkauf | F38: Indexfonds | G38: Verkauf | H38: -1.6481 | I38: 121.35 | J38: -199.996935 | K38: 0 | L38: -200 | M38: 1 | N38: -200 | O38: 137.7541 | P38: 2020-06-30 | Q38: 1.6481 | R38: 164.81 | S38: 100 | T38: 0 | U38: 35.186935
A39: 2021-09-05 | B39: Sparplan | C39: EUR | D39: ARERO Nachhaltig | E39: Kauf | F39: Indexfonds | G39: Kauf | H39: 3.9927 | I39: 125.23 | J39: 500 | K39: 0 | L39: -500 | M39: 1 | N39: 500 | O39: 141.7468
A40: 2021-09-20 | B40: Sparplan | C40: EUR | D40: ARERO Nachhaltig | E40: Verkauf | F40: Indexfonds | G40: Verkauf | H40: -1.6156 | I40: 123.79 | J40: -199.995124 | K40: 0 | L40: -200 | M40: 1 | N40: -200 | O40: 140.1312 | P40: 2020-06-30 | Q40: 1.6156 | R40: 161.56 | S40: 100 | T40: 0 | U40: 38.435124
A41: 2021-10-05 | B41: Sparplan | C41: EUR | D41: ARERO Nachhaltig | E41: Kauf | F41: Indexfonds | G41: Kauf | H41: 4.0407 | I41: 123.74 | J41: 500 | K41: 0 | L41: -500 | M41: 1 | N41: 500 | O41: 144.1719
A42: 2021-10-20 | B42: Sparplan | C42: EUR | D42: ARERO Nachhaltig | E42: Verkauf | F42: Indexfonds | G42: Verkauf | H42: -1.5711 | I42: 127.3 | J42: -200.00103 | K42: 0 | L42: -200 | M42: 1 | N42: -200 | O42: 142.6008 | P42: 2020-06-30 | Q42: 1.5711 | R42: 157.11 | S42: 100 | T42: 0 | U42: 42.89103
A43: 2021-11-05 | B43: Sparplan | C43: EUR | D43: ARERO Nachhaltig | E43: Kauf | F43: Indexfonds | G43: Kauf | H43: 3.9136 | I43: 127.76 | J43: 500 | K43: 0 | L43: -500 | M43: 1 | N43: 500 | O43: 146.5144
A44: 2021-11-20 | B44: Sparplan | C44: EUR | D44: ARERO Nachhaltig | E44: Verkauf | F44: Indexfonds | G44: Verkauf | H44: -1.5408 | I44: 129.8 | J44: -199.99584 | K44: 0 | L44: -200 | M44: 1 | N44: -200 | O44: 144.9736 | P44: 2020-06-30 | Q44: 1.5408 | R44: 154.08 | S44: 100 | T44: 0 | U44: 45.91584
A45: 2021-12-05 | B45: Sparplan | C45: EUR | D45: ARERO Nachhaltig | E45: Kauf | F45: Indexfonds | G45: Kauf | H45: 3.9834 | I45: 125.52 | J45: 500 | K45: 0 | L45: -500 | M45: 1 | N45: 500 | O45: 148.957
A46: 2021-12-20 | B46: Sparplan | C46: EUR | D46: ARERO Nachhaltig | E46: Verkauf | F46: Indexfonds | G46: Verkauf | H46: -1.5873 | I46: 126 | J46: -199.9998 | K46: 0 | L46: -200 | M46: 1 | N46: -200 | O46: 147.3697 | P46: 2020-06-30 | Q46: 1.5873 | R46: 158.73 | S46: 100 | T46: 0 | U46: 41.2698
A47: 2022-01-01 | B47: Sparplan | C47: EUR | D47: ARERO Nachhaltig | E47: Kauf | F47: Indexfonds | G47: Bestand | H47: 68.7349 | I47: 100 | J47: 6873.49 | K47: 0 | L47: -6873.49 | M47: 1
A48: 2022-01-01 | B48: Sparplan | C48: EUR | D48: ARERO Nachhaltig | E48: Kauf | F48: Indexfonds | G48: Bestand | H48: 4.9121 | I48: 101.79 | J48: 500.002659 | K48: 0 | L48: -500.002659 | M48: 1
A49: 2022-01-01 | B49: Sparplan | C49: EUR | D49: ARERO Nachhaltig | E49: Kauf | F49: Indexfonds | G49: Bestand | H49: 4.86 | I49: 102.88 | J49: 499.9968 | K49: 0 | L49: -499.9968 | M49: 1
A50: 2022-01-01 | B50: Sparplan | C50: EUR | D50: ARERO Nachhaltig | E50: Kauf | F50: Indexfonds | G50: Bestand | H50: 4.8511 | I50: 103.07 | J50: 500.002877 | K50: 0 | L50: -500.002877 | M50: 1
A51: 2022-01-01 | B51: Sparplan | C51: EUR | D51: ARERO Nachhaltig | E51: Kauf | F51: Indexfonds | G51: Bestand | H51: 4.8515 | I51: 103.06 | J51: 499.99559 | K51: 0 | L51: -499.99559 | M51: 1
A52: 2022-01-01 | B52: Sparplan | C52: EUR | D52: ARERO Nachhaltig | E52: Kauf | F52: Indexfonds | G52: Bestand | H52: 4.7028 | I52: 106.32 | J52: 500.001696 | K52: 0 | L52: -500.001696 | M52: 1
A53: 2022-01-01 | B53: Sparplan | C53: EUR | D53: ARERO Nachhaltig | E53: Kauf | F53: Indexfonds | G53: Bestand | H53: 4.5708 | I53: 109.39 | J53: 499.999812 | K53: 0 | L53: -499.999812 | M53: 1
A54: 2022-01-01 | B54: Sparplan | C54: EUR | D54: ARERO Nachhaltig | E54: Kauf | F54: Indexfonds | G54: Bestand | H54: 4.5061 | I54: 110.96 | J54: 499.996856 | K54: 0 | L54: -499.996856 | M54: 1
A55: 2022-01-01 | B55: Sparplan | C55: EUR | D55: ARERO Nachhaltig | E55: Kauf | F55: Indexfonds | G55: Bestand | H55: 4.3077 | I55: 116.07 | J55: 499.994739 | K55: 0 | L55: -499.994739 | M55: 1
A56: 2022-01-01 | B56: Sparplan | C56: EUR | D56: ARERO Nachhaltig | E56: Kauf | F56: Indexfonds | G56: Bestand | H56: 4.3706 | I56: 114.4 | J56: 499.99664 | K56: 0 | L56: -499.99664 | M56: 1
A57: 2022-01-01 | B57: Sparplan | C57: EUR | D57: ARERO Nachhaltig | E57: Kauf | F57: Indexfonds | G57: Bestand | H57: 4.243 | I57: 117.84 | J57: 499.99512 | K57: 0 | L57: -499.99512 | M57: 1
A58: 2022-01-01 | B58: Sparplan | C58: EUR | D58: ARERO Nachhaltig | E58: Kauf | F58: Indexfonds | G58: Bestand | H58: 4.2359 | I58: 118.04 | J58: 500.005636 | K58: 0 | L58: -500.005636 | M58: 1
A59: 2022-01-01 | B59: Sparplan | C59: EUR | D59: ARERO Nachhaltig | E59: Kauf | F59: Indexfonds | G59: Bestand | H59: 4.159 | I59: 120.22 | J59: 499.99498 | K59: 0 | L59: -499.99498 | M59: 1
A60: 2022-01-01 | B60: Sparplan | C60: EUR | D60: ARERO Nachhaltig | E60: Kauf | F60: Indexfonds | G60: Bestand | H60: 4.079 | I60: 122.58 | J60: 500.00382 | K60: 0 | L60: -500.00382 | M60: 1
A61: 2022-01-01 | B61: Sparplan | C61: EUR | D61: ARERO Nachhaltig | E61: Kauf | F61: Indexfonds | G61: Bestand | H61: 4.0548 | I61: 123.31 | J61: 499.997388 | K61: 0 | L61: -499.997388 | M61: 1
A62: 2022-01-01 | B62: Sparplan | C62: EUR | D62: ARERO Nachhaltig | E62: Kauf | F62: Indexfonds | G62: Bestand | H62: 3.9927 | I62: 125.23 | J62: 500.005821 | K62: 0 | L62: -500.005821 | M62: 1
A63: 2022-01-01 | B63: Sparplan | C63: EUR | D63: ARERO Nachhaltig | E63: Kauf | F63: Indexfonds | G63: Bestand | H63: 4.0407 | I63: 123.74 | J63: 499.996218 | K63: 0 | L63: -499.996218 | M63: 1
A64: 2022-01-01 | B64: Sparplan | C64: EUR | D64: ARERO Nachhaltig | E64: Kauf | F64: Indexfonds | G64: Bestand | H64: 3.9136 | I64: 127.76 | J64: 500.001536 | K64: 0 | L64: -500.001536 | M64: 1
A65: 2022-01-01 | B65: Sparplan | C65: EUR | D65: ARERO Nachhaltig | E65: Kauf | F65: Indexfonds | G65: Bestand | H65: 3.9834 | I65: 125.52 | J65: 499.996368 | K65: 0 | L65: -499.996368 | M65: 1
A66: 2022-01-05 | B66: Sparplan | C66: EUR | D66: ARERO Nachhaltig | E66: Kauf | F66: Indexfonds | G66: Kauf | H66: 3.8853 | I66: 128.69 | J66: 500 | K66: 0 | L66: -500 | M66: 1 | N66: 500 | O66: 151.255
A67: 2023-01-01 | B67: Sparplan | C67: EUR | D67: ARERO Nachhaltig | E67: Kauf | F67: Indexfonds | G67: Bestand | H67: 68.7349 | I67: 100 | J67: 6873.49 | K67: 0 | L67: -6873.49 | M67: 1
A68: 2023-01-01 | B68: Sparplan | C68: EUR | D68: ARERO Nachhaltig | E68: Kauf | F68: Indexfonds | G68: Bestand | H68: 4.9121 | I68: 101.79 | J68: 500.002659 | K68: 0 | L68: -500.002659 | M68: 1
A69: 2023-01-01 | B69: Sparplan | C69: EUR | D69: ARERO Nachhaltig | E69: Kauf | F69: Indexfonds | G69: Bestand | H69: 4.86 | I69: 102.88 | J69: 499.9968 | K69: 0 | L69: -499.9968 | M69: 1
A70: 2023-01-01 | B70: Sparplan | C70: EUR | D70: ARERO Nachhaltig | E70: Kauf | F70: Indexfonds | G70: Bestand | H70: 4.8511 | I70: 103.07 | J70: 500.002877 | K70: 0 | L70: -500.002877 | M70: 1
A71: 2023-01-01 | B71: Sparplan | C71: EUR | D71: ARERO Nachhaltig | E71: Kauf | F71: Indexfonds | G71: Bestand | H71: 4.8515 | I71: 103.06 | J71: 499.99559 | K71: 0 | L71: -499.99559 | M71: 1
A72: 2023-01-01 | B72: Sparplan | C72: EUR | D72: ARERO Nachhaltig | E72: Kauf | F72: Indexfonds | G72: Bestand | H72: 4.7028 | I72: 106.32 | J72: 500.001696 | K72: 0 | L72: -500.001696 | M72: 1
A73: 2023-01-01 | B73: Sparplan | C73: EUR | D73: ARERO Nachhaltig | E73: Kauf | F73: Indexfonds | G73: Bestand | H73: 4.5708 | I73: 109.39 | J73: 499.999812 | K73: 0 | L73: -499.999812 | M73: 1
A74: 2023-01-01 | B74: Sparplan | C74: EUR | D74: ARERO Nachhaltig | E74: Kauf | F74: Indexfonds | G74: Bestand | H74: 4.5061 | I74: 110.96 | J74: 499.996856 | K74: 0 | L74: -499.996856 | M74: 1
A75: 2023-01-01 | B75: Sparplan | C75: EUR | D75: ARERO Nachhaltig | E75: Kauf | F75: Indexfonds | G75: Bestand | H75: 4.3077 | I75: 116.07 | J75: 499.994739 | K75: 0 | L75: -499.994739 | M75: 1
A76: 2023-01-01 | B76: Sparplan | C76: EUR | D76: ARERO Nachhaltig | E76: Kauf | F76: Indexfonds | G76: Bestand | H76: 4.3706 | I76: 114.4 | J76: 499.99664 | K76: 0 | L76: -499.99664 | M76: 1
A77: 2023-01-01 | B77: Sparplan | C77: EUR | D77: ARERO Nachhaltig | E77: Kauf | F77: Indexfonds | G77: Bestand | H77: 4.243 | I77: 117.84 | J77: 499.99512 | K77: 0 | L77: -499.99512 | M77: 1
A78: 2023-01-01 | B78: Sparplan | C78: EUR | D78: ARERO Nachhaltig | E78: Kauf | F78: Indexfonds | G78: Bestand | H78: 4.2359 | I78: 118.04 | J78: 500.005636 | K78: 0 | L78: -500.005636 | M78: 1
A79: 2023-01-01 | B79: Sparplan | C79: EUR | D79: ARERO Nachhaltig | E79: Kauf | F79: Indexfonds | G79: Bestand | H79: 4.159 | I79: 120.22 | J79: 499.99498 | K79: 0 | L79: -499.99498 | M79: 1
A80: 2023-01-01 | B80: Sparplan | C80: EUR | D80: ARERO Nachhaltig | E80: Kauf | F80: Indexfonds | G80: Bestand | H80: 4.079 | I80: 122.58 | J80: 500.00382 | K80: 0 | L80: -500.00382 | M80: 1
A81: 2023-01-01 | B81: Sparplan | C81: EUR | D81: ARERO Nachhaltig | E81: Kauf | F81: Indexfonds | G81: Bestand | H81: 4.0548 | I81: 123.31 | J81: 499.997388 | K81: 0 | L81: -499.997388 | M81: 1
A82: 2023-01-01 | B82: Sparplan | C82: EUR | D82: ARERO Nachhaltig | E82: Kauf | F82: Indexfonds | G82: Bestand | H82: 3.9927 | I82: 125.23 | J82: 500.005821 | K82: 0 | L82: -500.005821 | M82: 1
A83: 2023-01-01 | B83: Sparplan | C83: EUR | D83: ARERO Nachhaltig | E83: Kauf | F83: Indexfonds | G83: Bestand | H83: 4.0407 | I83: 123.74 | J83: 499.996218 | K83: 0 | L83: -499.996218 | M83: 1
A84: 2023-01-01 | B84: Sparplan | C84: EUR | D84: ARERO Nachhaltig | E84: Kauf | F84: Indexfonds | G84: Bestand | H84: 3.9136 | I84: 127.76 | J84: 500.001536 | K84: 0 | L84: -500.001536 | M84: 1
A85: 2023-01-01 | B85: Sparplan | C85: EUR | D85: ARERO Nachhaltig | E85: Kauf | F85: Indexfonds | G85: Bestand | H85: 3.9834 | I85: 125.52 | J85: 499.996368 | K85: 0 | L85: -499.996368 | M85: 1
A86: 2023-01-01 | B86: Sparplan | C86: EUR | D86: ARERO Nachhaltig | E86: Kauf | F86: Indexfonds | G86: Bestand | H86: 3.8853 | I86: 128.69 | J86: 499.999257 | K86: 0 | L86: -499.999257 | M86: 1
